bitfinex/quotes_SOLUSD_20250415
["timestamp","ask_amount","ask_price","bid_price","bid_amount"]
[1744750416863,26.0212599,127.39,127.33,7.85332199]
[1744750417081,26.0212599,127.39,127.35,25.5212599]
[1744750417368,0.5,127.39,127.35,25.5212599]
[1744750417571,0.5,127.39,127.36,25.5212599]
[1744750417946,0.5,127.4,127.36,25.5212599]
[1744750418264,0.5,127.39,127.37,25.5212599]
[1744750418679,0.5,127.4,127.37,25.5212599]
[1744750418848,0.5,127.39,127.36,25.5212599]
[1744750419349,0.5,127.39,127.37,25.5212599]
[1744750419778,0.5,127.39,127.36,25.5212599]
[1744750421587,33.8712922,127.39,127.33,7.85360873]
[1744750421782,0.5,127.39,127.34,25.5212599]
[1744750421978,26.0212599,127.39,127.34,25.5212599]
[1744750422374,0.5,127.39,127.35,25.5212599]
[1744750422576,0.5,127.39,127.36,25.5212599]
[1744750422784,0.5,127.39,127.33,7.85360873]
[1744750422785,0.563,127.42,127.38,25.5212599]
[1744750423087,0.5,127.4,127.37,25.5212599]
[1744750423990,25.5842599,127.42,127.37,25.5212599]
[1744750423991,0.563,127.42,127.37,25.5212599]
[1744750424178,0.563,127.42,127.38,25.5212599]
[1744750424377,0.563,127.42,127.37,25.5212599]
[1744750424687,0.5,127.4,127.37,25.5212599]
[1744750425595,0.5,127.41,127.37,25.5212599]
[1744750425771,0.5,127.4,127.37,25.5212599]
[1744750426896,0.5,127.4,127.36,7.85150532]
[1744750427087,0.5,127.4,127.37,25.5212599]
[1744750427677,25.5212599,127.39,127.33,7.85345969]
[1744750427873,26.0212599,127.39,127.34,25.5212599]
[1744750428192,26.0212599,127.39,127.35,25.5212599]
[1744750428193,0.5,127.39,127.35,25.5212599]
[1744750429185,8.35002212,127.39,127.35,25.5212599]
[1744750429386,0.5,127.38,127.32,35.42661456]
[1744750429692,0.5,127.38,127.35,25.5212599]
[1744750430092,0.5,127.39,127.36,25.5212599]
[1744750430265,0.5,127.39,127.35,25.5212599]
[1744750430983,0.5,127.39,127.36,25.5212599]
[1744750431187,18.71264886,127.42,127.35,7.85211646]
[1744750431188,0.5,127.4,127.35,7.85211646]
[1744750431394,0.5,127.4,127.37,25.5212599]
[1744750431896,0.5,127.4,127.35,7.85211646]
[1744750431897,0.5,127.4,127.38,25.5212599]
[1744750432094,0.5,127.41,127.38,25.5212599]
[1744750432393,0.563,127.42,127.4,25.5212599]
[1744750433595,0.063,127.42,127.4,25.5212599]
[1744750433895,0.563,127.42,127.4,25.5212599]
[1744750434083,0.563,127.42,127.35,45.63093835]
[1744750434271,0.563,127.42,127.38,25.5212599]
[1744750434593,0.563,127.42,127.39,25.5212599]
[1744750434766,0.563,127.42,127.38,25.5212599]
[1744750435187,0.5,127.4,127.36,25.5212599]
[1744750435998,0.5,127.4,127.35,26.0]
[1744750436200,8.34939701,127.4,127.36,25.5212599]
[1744750436395,0.5,127.4,127.36,25.5212599]
[1744750436599,0.5,127.4,127.35,25.5212599]
[1744750436600,26.0212599,127.4,127.35,25.5212599]
[1744750436893,0.5,127.38,127.34,25.5212599]
[1744750437594,0.5,127.38,127.33,90.85356188]
[1744750437793,0.5,127.38,127.32,26.03]
[1744750438091,26.0212599,127.38,127.34,25.5212599]
[1744750438681,0.5,127.38,127.34,25.5212599]
[1744750438881,26.0212599,127.38,127.33,25.5212599]
[1744750439099,0.5,127.38,127.34,25.5212599]
[1744750440101,0.5,127.39,127.35,25.5212599]
[1744750440280,0.5,127.39,127.37,25.5212599]
[1744750440894,0.5,127.39,127.36,25.5212599]
[1744750444897,0.5,127.4,127.36,25.5212599]
[1744750445091,0.5,127.39,127.36,25.5212599]
[1744750445593,0.5,127.39,127.35,7.85209938]
[1744750445982,0.5,127.39,127.35,25.5212599]
[1744750446182,33.87124422,127.39,127.32,33.88407746]
[1744750446494,26.0212599,127.33,127.32,0.03]
[1744750446901,0.5,127.33,127.32,0.03]
[1744750449088,0.5,127.29,127.28,0.03]
[1744750449291,26.0212599,127.29,127.28,0.03]
[1744750450296,33.87733657,127.29,127.28,0.03]
[1744750450685,26.0212599,127.29,127.28,0.03]
[1744750450993,33.87733657,127.29,127.28,0.03]
[1744750451404,52.52698543,127.29,127.28,0.03]
[1744750451701,52.669147,127.29,127.28,0.03]
[1744750457605,19.14964886,127.26,127.25,0.03]
[1744750457804,44.67090876,127.26,127.25,0.03]
[1744750458012,116.33433023,127.26,127.25,0.03]
[1744750458181,19.14964886,127.23,127.22,0.03]
[1744750458382,44.67090876,127.23,127.22,0.03]
[1744750458587,19.14964886,127.23,127.22,0.03]
[1744750458809,52.53069025,127.23,127.22,0.03]
[1744750460410,39.29181043,127.22,127.21,0.03]
[1744750460723,72.67346963,127.22,127.21,0.03]
[1744750461306,78.76026963,127.22,127.21,0.03]
[1744750461880,105.92652953,127.22,127.21,1e-08]
[1744750462099,107.35627379,127.22,127.21,1e-08]
[1744750462799,81.83501389,127.22,127.21,1e-08]
[1744750463104,107.83501389,127.22,127.21,1e-08]
[1744750464093,52.66619312,127.22,127.21,1e-08]
[1744750464409,52.53130806,127.22,127.21,1e-08]
[1744750464793,72.67346963,127.22,127.21,1e-08]
[1744750465487,0.5,127.13,127.1,1.6404]
[1744750465692,0.5,127.13,127.1,27.1616599]
[1744750466008,0.5,127.14,127.1,27.1616599]
[1744750466307,0.5,127.14,127.11,25.5212599]
[1744750467120,0.5,127.14,127.1,1.6404]
[1744750467408,0.5,127.13,127.11,25.5212599]
[1744750467609,0.5,127.13,127.1,27.1616599]
[1744750467782,0.5,127.13,127.08,6.1904]
[1744750467984,26.0212599,127.11,127.08,0.03]
[1744750468242,0.5,127.1,127.08,0.03]
[1744750468414,0.5,127.11,127.09,25.5212599]
[1744750468611,0.5,127.1,127.08,0.03]
[1744750468984,0.5,127.1,127.08,25.5512599]
[1744750469411,0.5,127.11,127.08,25.5512599]
[1744750470011,0.5,127.13,127.1,25.5212599]
[1744750470200,0.5,127.15,127.09,7.86843968]
[1744750470383,0.5,127.15,127.12,25.5212599]
[1744750470585,0.5,127.13,127.09,7.86843968]
[1744750470811,0.5,127.14,127.1,25.5212599]
[1744750471015,0.5,127.14,127.11,25.5212599]
[1744750471198,0.5,127.13,127.11,25.5212599]
[1744750471605,0.5,127.13,127.08,33.42011916]
[1744750471909,0.5,127.14,127.11,25.5212599]
[1744750472111,0.5,127.16,127.13,25.5212599]
[1744750472310,26.51211916,127.19,127.14,25.5212599]
[1744750472311,0.5,127.15,127.14,25.5212599]
[1744750472610,0.5,127.17,127.14,25.5212599]
[1744750472799,0.5,127.15,127.14,25.5212599]
[1744750472999,0.5,127.15,127.13,25.5212599]
[1744750473203,0.5,127.15,127.1,7.86759406]
[1744750473399,0.5,127.15,127.13,25.5212599]
[1744750473793,0.5,127.15,127.1,7.86759406]
[1744750473994,0.5,127.16,127.13,25.5212599]
[1744750474195,0.5,127.17,127.14,25.5212599]
[1744750474413,0.5,127.19,127.16,25.5212599]
[1744750474604,33.86188118,127.2,127.16,25.5212599]
[1744750474605,0.5,127.17,127.16,25.5212599]
[1744750475019,0.5,127.17,127.15,25.5212599]
[1744750475319,0.5,127.18,127.15,25.5212599]
[1744750475622,0.5,127.16,127.15,25.5212599]
[1744750475817,0.5,127.17,127.12,9.44206375]
[1744750475992,0.5,127.16,127.15,25.5212599]
[1744750476192,0.5,127.18,127.15,25.5212599]
[1744750476388,0.5,127.16,127.13,7.8659258]
[1744750476617,0.5,127.16,127.15,25.5212599]
[1744750477992,8.36226216,127.19,127.15,25.5212599]
[1744750478498,0.5,127.16,127.15,25.5212599]
[1744750479901,0.5,127.16,127.14,25.5212599]
[1744750480211,0.5,127.16,127.13,25.5212599]
[1744750480419,0.5,127.16,127.14,25.5212599]
[1744750482225,0.5,127.16,127.13,25.5212599]
[1744750482522,0.5,127.15,127.12,51.1212599]
[1744750483240,0.5,127.12,127.09,25.5212599]
[1744750484624,0.5,127.12,127.1,25.5212599]
[1744750485525,0.5,127.16,127.11,25.5212599]
[1744750485821,0.5,127.17,127.15,25.5212599]
[1744750486028,0.5,127.17,127.16,25.5212599]
[1744750487526,0.5,127.19,127.16,25.5212599]
[1744750487698,0.5,127.19,127.18,25.5212599]
[1744750488117,0.5,127.21,127.18,25.5212599]
[1744750488315,0.563,127.22,127.19,25.5212599]
[1744750488519,0.063,127.22,127.19,25.5212599]
[1744750488718,0.563,127.22,127.2,25.5212599]
[1744750489212,0.5,127.2,127.14,76.4012599]
[1744750489419,0.5,127.2,127.18,25.5212599]
[1744750489823,0.5,127.19,127.16,25.5212599]
[1744750490213,8.36225993,127.19,127.16,25.5212599]
[1744750490605,0.5,127.19,127.14,50.88]
[1744750490805,0.5,127.19,127.16,25.5212599]
[1744750492527,18.64964886,127.15,127.09,1.6014]
[1744750492711,26.0212599,127.13,127.1,30.0]
[1744750492901,0.5,127.11,127.08,25.5512599]
[1744750493097,0.5,127.11,127.09,25.5212599]
[1744750493301,0.5,127.1,127.09,25.5212599]
[1744750494224,0.5,127.1,127.08,0.03]
[1744750494225,0.5,127.1,127.08,25.5512599]
[1744750494423,0.5,127.1,127.09,25.5212599]
[1744750494634,0.5,127.11,127.09,25.5212599]
[1744750496142,0.5,127.1,127.09,25.5212599]
[1744750496533,0.5,127.1,127.08,25.5512599]
[1744750496738,0.5,127.11,127.08,25.5512599]
[1744750497124,0.5,127.1,127.08,25.5512599]
[1744750497324,0.5,127.12,127.09,25.5212599]
[1744750497638,0.5,127.12,127.08,7.89887847]
[1744750497639,0.5,127.12,127.1,25.5212599]
[1744750499041,0.5,127.11,127.1,25.5212599]
[1744750499230,0.5,127.11,127.09,25.5212599]
[1744750500759,0.5,127.1,127.09,25.5212599]
[1744750500953,0.5,127.1,127.08,0.03]
[1744750501127,0.5,127.09,127.08,0.03]
[1744750501442,26.0212599,127.09,127.08,0.03]
[1744750501625,0.5,127.09,127.08,0.03]
[1744750503254,0.5,127.11,127.08,0.03]
[1744750503461,0.5,127.12,127.1,25.5212599]
[1744750503638,0.5,127.12,127.11,25.5212599]
[1744750503956,0.5,127.12,127.08,0.03]
[1744750504131,0.5,127.1,127.08,25.5512599]
[1744750504456,0.5,127.09,127.08,0.03]
[1744750505454,0.5,127.1,127.08,25.5512599]
[1744750505776,0.5,127.11,127.09,25.5212599]
[1744750505958,33.38675977,127.14,127.09,25.5212599]
[1744750505959,0.5,127.1,127.09,25.5212599]
[1744750506258,0.5,127.09,127.08,0.03]
[1744750507155,0.5,127.09,127.08,25.5512599]
[1744750508055,0.5,127.09,127.08,0.03]
[1744750510163,8.36843968,127.09,127.08,0.03]
[1744750510340,52.53934844,127.09,127.08,0.03]
[1744750510743,54.06734844,127.09,127.08,0.03]
[1744750511063,28.54608854,127.09,127.08,0.03]
[1744750511263,0.5,126.95,126.9,7.88022064]
[1744750511464,0.5,126.98,126.94,25.5212599]
[1744750511638,0.5,127.01,126.97,25.5212599]
[1744750511964,0.5,127.0,126.92,30.0]
[1744750512136,0.5,126.99,126.92,30.0]
[1744750512340,0.5,127.03,126.96,25.5212599]
[1744750512658,0.5,127.0,126.99,25.5212599]
[1744750512856,0.5,126.99,126.9,211.66203215]
[1744750513064,0.5,126.99,126.97,25.5212599]
[1744750513275,0.5,126.96,126.9,23.56]
[1744750513471,0.5,126.96,126.89,87.96946378]
[1744750513472,0.5,126.9,126.89,4.96946378]
[1744750513948,26.0212599,126.9,126.89,4.96946378]
[1744750514147,0.5,126.9,126.89,4.96946378]
[1744750514350,26.0212599,126.9,126.89,4.96946378]
[1744750515060,8.38022064,126.9,126.89,4.96946378]
[1744750515253,8.38022064,126.9,126.89,4.46946378]
[1744750515562,33.90148054,126.9,126.89,4.46946378]
[1744750516164,8.38022064,126.9,126.89,4.46946378]
[1744750516457,0.5,126.85,126.81,32.96]
[1744750516671,0.5,126.84,126.81,10.0]
[1744750516844,0.5,126.83,126.81,10.0]
[1744750517034,0.5,126.83,126.81,35.5212599]
[1744750517242,0.5,126.82,126.81,10.0]
[1744750517643,0.5,126.85,126.81,35.5212599]
[1744750517852,46.0,126.9,126.82,25.5212599]
[1744750517853,0.5,126.83,126.82,25.5212599]
[1744750518051,0.5,126.83,126.81,10.0]
[1744750518261,0.5,126.82,126.81,10.0]
[1744750518469,26.0212599,126.82,126.81,10.0]
[1744750518661,0.5,126.82,126.81,10.0]
[1744750518853,26.0212599,126.82,126.81,10.0]
[1744750519173,0.5,126.82,126.81,10.0]
[1744750519542,26.0212599,126.82,126.81,10.0]
[1744750519757,53.90645151,126.82,126.8,1.24800001]
[1744750519963,26.0212599,126.81,126.8,1e-08]
[1744750520141,52.0212599,126.81,126.8,1e-08]
[1744750520349,0.5,126.81,126.8,1e-08]
[1744750521066,0.5,126.81,126.8,25.52125991]
[1744750521251,0.5,126.82,126.8,1e-08]
[1744750521657,0.5,126.83,126.8,1e-08]
[1744750521852,0.5,126.82,126.81,25.5212599]
[1744750522258,0.5,126.87,126.81,25.5212599]
[1744750522460,0.5,126.85,126.83,25.5212599]
[1744750522770,0.5,126.9,126.84,51.0425198]
[1744750522977,0.5,126.87,126.84,25.5212599]
[1744750523173,0.5,126.92,126.86,25.5212599]
[1744750523345,0.5,126.92,126.91,25.5212599]
[1744750523550,0.5,126.94,126.91,25.5212599]
[1744750523863,0.5,126.94,126.93,25.5212599]
[1744750524064,0.5,126.96,126.93,25.5212599]
[1744750524273,0.5,126.99,126.95,25.5212599]
[1744750524574,0.5,126.98,126.97,25.5212599]
[1744750524769,0.5,126.99,126.97,25.5212599]
[1744750525074,0.5,126.97,126.96,25.5212599]
[1744750525375,0.5,126.97,126.96,38.99886282]
[1744750525767,0.5,126.96,126.91,7.87959971]
[1744750525971,0.5,126.98,126.95,38.99886282]
[1744750526163,0.5,126.98,126.97,38.99886282]
[1744750526343,0.5,126.99,126.97,38.99886282]
[1744750527179,0.5,126.98,126.96,38.99886282]
[1744750527659,0.5,126.96,126.94,38.99886282]
[1744750527853,0.5,126.95,126.9,328.76]
[1744750528079,0.5,126.93,126.91,38.99886282]
[1744750529174,0.5,126.92,126.9,328.76]
[1744750529355,0.5,126.92,126.9,245.76]
[1744750530784,0.5,126.92,126.9,284.75886282]
[1744750530979,0.5,126.94,126.91,38.99886282]
[1744750531274,0.5,126.94,126.92,38.99886282]
[1744750532548,0.5,126.94,126.9,245.76]
[1744750532750,0.5,126.93,126.9,245.76]
[1744750532966,0.5,126.91,126.9,245.76]
[1744750533368,0.5,126.91,126.9,284.75886282]
[1744750533669,0.5,126.92,126.9,292.63908085]
[1744750533875,0.5,126.95,126.91,38.99886282]
[1744750534075,0.5,126.95,126.94,38.99886282]
[1744750534278,0.5,126.95,126.9,292.63908085]
[1744750534581,0.5,126.95,126.93,38.99886282]
[1744750534753,0.5,126.95,126.94,38.99886282]
[1744750535461,0.5,126.96,126.94,38.99886282]
[1744750535760,0.5,126.96,126.95,38.99886282]
[1744750536677,0.5,126.96,126.94,38.99886282]
[1744750536983,0.5,126.95,126.91,7.87959971]
[1744750537279,0.5,126.95,126.92,38.99886282]
[1744750537482,0.5,126.95,126.93,38.99886282]
[1744750539562,0.5,126.95,126.93,46.87711621]
[1744750539764,0.5,126.95,126.93,38.99886282]
[1744750540281,0.5,126.96,126.93,38.99886282]
[1744750540479,0.5,126.95,126.93,38.99886282]
[1744750540686,0.5,126.96,126.94,38.99886282]
[1744750540876,0.5,126.95,126.92,7.87871697]
[1744750541061,0.5,126.96,126.94,38.99886282]
[1744750541577,0.5,126.95,126.94,38.99886282]
[1744750542377,0.5,126.95,126.93,38.99886282]
[1744750542582,0.5,126.96,126.93,38.99886282]
[1744750543084,0.5,126.95,126.93,38.99886282]
[1744750544901,0.5,126.95,126.91,7.87959971]
[1744750545098,0.5,126.96,126.93,38.99886282]
[1744750545381,0.5,126.95,126.93,25.72599204]
[1744750546083,0.5,126.98,126.94,25.72599204]
[1744750546291,0.5,126.97,126.95,25.72599204]
[1744750546808,0.5,126.97,126.96,25.72599204]
[1744750547467,0.5,126.97,126.94,25.72599204]
[1744750548072,0.5,126.96,126.94,25.72599204]
[1744750551260,0.063,126.99,126.94,55.16221935]
[1744750551587,0.063,126.99,126.98,25.72599204]
[1744750551791,0.063,126.99,126.96,25.72599204]
[1744750551973,0.063,126.99,126.98,25.72599204]
[1744750553385,0.063,126.99,126.98,33.60124798]
[1744750557075,0.063,127.01,126.98,53.28938784]
[1744750557276,0.063,127.01,127.0,25.72599204]
[1744750557592,0.063,127.01,127.0,47.44599204]
[1744750558166,0.063,127.01,127.0,79.55648408]
[1744750558368,0.063,127.05,127.0,105.55648408]
[1744750558567,0.063,127.05,127.04,25.72599204]
[1744750559069,0.063,127.05,127.04,33.59752856]
[1744750559265,0.063,127.09,127.04,53.27636986]
[1744750559484,0.063,127.09,127.08,25.72599204]
[1744750559686,26.0,127.17,127.08,25.72599204]
[1744750559687,73.4121324,127.25,127.18,1.0]
[1744750559871,103.73314487,127.29,127.27,1.14216157]
[1744750560075,235.47828044,127.35,127.29,18.79181043]
[1744750560269,171.61297248,127.35,127.28,0.14216157]
[1744750560573,171.61297248,127.35,127.29,25.72599204]
[1744750560763,197.33896452,127.35,127.29,25.72599204]
[1744750560968,171.61297248,127.35,127.27,33.8567926]
[1744750561198,171.61297248,127.35,127.3,38.78943596]
[1744750561487,171.61297248,127.35,127.27,33.8567926]
[1744750561488,38.78943596,127.35,127.27,33.8567926]
[1744750561689,38.78943596,127.3,127.21,39.08122855]
[1744750561874,38.78943596,127.28,127.23,78.50094827]
[1744750562069,18.64964886,127.31,127.27,38.78943596]
[1744750562676,17.86100886,127.31,127.27,38.78943596]
[1744750563100,38.78943596,127.29,127.24,77.8661952]
[1744750563595,38.78943596,127.3,127.25,64.04638712]
[1744750563796,38.78943596,127.29,127.25,64.04638712]
[1744750563999,38.78943596,127.28,127.23,38.78943596]
[1744750564379,38.78943596,127.29,127.24,38.78943596]
[1744750564791,38.78943596,127.3,127.25,38.78943596]
[1744750565202,46.64446107,127.31,127.27,96.4539037]
[1744750566696,7.85502511,127.31,127.27,96.4539037]
[1744750566893,46.64446107,127.31,127.27,96.4539037]
[1744750567091,46.64446107,127.31,127.3,71.73325649]
[1744750567295,7.85502511,127.31,127.3,71.73325649]
[1744750567599,46.64446107,127.31,127.3,71.73325649]
[1744750569102,7.85432716,127.32,127.3,71.73325649]
[1744750569395,46.64376312,127.32,127.3,71.73325649]
[1744750569694,57.43908482,127.31,127.3,71.73325649]
[1744750570988,65.29392733,127.31,127.3,71.73325649]
[1744750572490,65.29392733,127.31,127.27,96.4539037]
[1744750572491,0.14216157,127.29,127.27,96.4539037]
[1744750572807,38.78943596,127.28,127.27,96.4539037]
[1744750572998,46.64612986,127.28,127.27,96.4539037]
[1744750573691,18.64964886,127.27,127.22,83.0]
[1744750573888,20.48,127.26,127.22,83.0]
[1744750574296,38.78943596,127.25,127.22,83.0]
[1744750574601,38.78943596,127.23,127.22,83.0]
[1744750574804,38.78943596,127.24,127.22,83.0]
[1744750575002,7.85978149,127.23,127.22,83.0]
[1744750575507,7.85978149,127.23,127.16,39.91420951]
[1744750575508,18.79181043,127.22,127.15,83.0]
[1744750575810,38.78943596,127.17,127.15,83.0]
[1744750575992,38.78943596,127.18,127.15,83.0]
[1744750576193,20.48,127.19,127.16,38.78943596]
[1744750576600,20.48,127.19,127.17,38.78943596]
[1744750576983,66.80814272,127.23,127.18,38.78943596]
[1744750576984,7.86169027,127.2,127.18,38.78943596]
[1744750577307,7.8603993,127.22,127.19,38.78943596]
[1744750577499,7.8603993,127.22,127.2,38.78943596]
[1744750577681,7.85978149,127.23,127.2,38.78943596]
[1744750577882,7.85978149,127.23,127.22,38.78943596]
[1744750578082,38.78943596,127.29,127.22,38.78943596]
[1744750578305,59.26943596,127.29,127.24,38.78943596]
[1744750579798,20.48,127.29,127.24,38.78943596]
[1744750579981,27.49842865,127.28,127.24,38.78943596]
[1744750580402,27.49842865,127.28,127.22,38.78943596]
[1744750580605,38.78943596,127.25,127.15,83.0]
[1744750580782,38.78943596,127.24,127.19,38.78943596]
[1744750581182,38.78943596,127.23,127.19,38.78943596]
[1744750581380,38.78943596,127.23,127.16,26.0]
[1744750581585,7.8603993,127.22,127.19,38.78943596]
[1744750583410,66.30083353,127.22,127.17,38.78943596]
[1744750583705,66.30083353,127.22,127.15,83.0]
[1744750583706,7.86287152,127.18,127.15,83.0]
[1744750584007,46.65230748,127.18,127.15,83.0]
[1744750584211,7.86287152,127.18,127.16,38.78943596]
[1744750584389,19.86,127.22,127.17,38.78943596]
[1744750584712,19.86,127.22,127.21,38.78943596]
[1744750584904,19.86,127.22,127.2,38.78943596]
[1744750585498,27.72061419,127.22,127.2,38.78943596]
[1744750585694,7.85792865,127.26,127.21,38.78943596]
[1744750585899,7.85792865,127.26,127.25,38.78943596]
[1744750586107,7.85792865,127.26,127.23,38.78943596]
[1744750586614,7.85792865,127.26,127.24,38.78943596]
[1744750587311,7.85792865,127.26,127.23,38.78943596]
[1744750587714,7.92031122,127.27,127.23,38.78943596]
[1744750588205,7.92031122,127.27,127.24,38.78943596]
[1744750588795,7.92031122,127.27,127.23,38.78943596]
[1744750590796,27.56358929,127.27,127.22,38.78943596]
[1744750590996,66.35302525,127.27,127.22,38.78943596]
[1744750592215,27.56358929,127.27,127.23,38.78943596]
[1744750592711,7.92031122,127.27,127.24,38.78943596]
[1744750593821,7.92031122,127.27,127.23,38.78943596]
[1744750594120,0.063,127.27,127.26,38.78943596]
[1744750594295,0.063,127.27,127.26,77.57887192]
[1744750594496,0.063,127.27,127.26,160.57887192]
[1744750594807,0.063,127.27,127.26,121.78943596]
[1744750594999,0.063,127.27,127.26,160.57887192]
[1744750595855,0.063,127.27,127.26,295.22103349]
[1744750596122,0.063,127.33,127.29,26.0]
[1744750596428,38.85243596,127.33,127.29,82.937]
[1744750596721,46.70604469,127.33,127.29,82.937]
[1744750597226,7.91660873,127.33,127.29,121.72643596]
[1744750597397,0.063,127.33,127.3,38.78943596]
[1744750597999,7.91675266,127.33,127.29,121.72643596]
[1744750599306,7.91675266,127.33,127.29,108.51673594]
[1744750599505,0.063,127.33,127.31,25.57973594]
[1744750599705,0.063,127.33,127.32,25.57973594]
[1744750599909,0.063,127.33,127.32,108.51673594]
[1744750600109,0.063,127.33,127.32,141.95069745]
[1744750600326,0.063,127.33,127.32,116.37096151]
[1744750600720,0.063,127.33,127.32,108.51673594]
[1744750600905,0.063,127.33,127.32,116.37096151]
[1744750601226,0.063,127.33,127.32,168.31851617]
[1744750603426,0.063,127.33,127.32,194.46067774]
[1744750603623,0.063,127.35,127.33,82.874]
[1744750603830,0.063,127.35,127.34,38.7636453]
[1744750604019,0.063,127.35,127.34,121.6376453]
[1744750604227,0.063,127.35,127.34,129.49063728]
[1744750604620,0.063,127.35,127.34,121.6376453]
[1744750604825,0.063,127.35,127.34,82.874]
[1744750605306,0.063,127.35,127.34,121.6376453]
[1744750605503,0.063,127.35,127.34,256.1376453]
[1744750606314,0.063,127.35,127.34,263.99063728]
[1744750606926,0.063,127.35,127.34,129.49063728]
[1744750608031,0.063,127.35,127.34,82.874]
[1744750608240,0.063,127.35,127.34,121.6376453]
[1744750611138,0.063,127.35,127.34,129.49063728]
[1744750611437,0.063,127.35,127.34,121.6376453]
[1744750612229,0.063,127.35,127.34,129.49063728]
[1744750613737,0.063,127.37,127.36,26.0]
[1744750613938,0.063,127.37,127.36,147.5746453]
[1744750615436,0.063,127.37,127.36,121.5746453]
[1744750615940,0.063,127.37,127.36,129.42640409]
[1744750616835,0.063,127.53,127.42,26.0]
[1744750617035,0.063,127.53,127.44,38.7636453]
[1744750617210,0.063,127.53,127.49,38.7636453]
[1744750617531,38.8266453,127.52,127.49,82.811]
[1744750617838,46.60616745,127.51,127.49,82.811]
[1744750618141,38.7636453,127.5,127.49,82.811]
[1744750619933,7.84252215,127.51,127.49,82.811]
[1744750620119,38.7636453,127.5,127.49,82.811]
[1744750620314,96.17693946,127.5,127.49,82.811]
[1744750620515,96.17693946,127.5,127.41,82.811]
[1744750620813,38.7636453,127.47,127.42,38.7636453]
[1744750621034,38.7636453,127.47,127.42,121.5746453]
[1744750621236,38.7636453,127.48,127.43,38.7636453]
[1744750621428,18.64964886,127.5,127.43,38.7636453]
[1744750621628,53.44882753,127.51,127.43,82.811]
[1744750621629,27.44882753,127.51,127.43,82.811]
[1744750621828,66.21247283,127.51,127.43,82.811]
[1744750622018,27.44882753,127.51,127.46,38.7636453]
[1744750622219,66.21247283,127.51,127.46,38.7636453]
[1744750622635,27.44882753,127.51,127.46,38.7636453]
[1744750622820,66.21247283,127.51,127.46,38.7636453]
[1744750623336,38.7636453,127.5,127.46,38.7636453]
[1744750623642,38.7636453,127.5,127.43,90.65829169]
[1744750623827,38.7636453,127.5,127.45,38.7636453]
[1744750624032,66.21247283,127.51,127.46,38.7636453]
[1744750624238,38.7636453,127.49,127.44,38.7636453]
[1744750625023,38.7636453,127.48,127.43,256.0746453]
[1744750625221,38.7636453,127.48,127.43,82.811]
[1744750625544,7.84498313,127.47,127.43,121.5746453]
[1744750627342,27.45528709,127.48,127.43,82.811]
[1744750627525,38.7636453,127.47,127.43,82.811]
[1744750627933,66.21893239,127.48,127.43,121.5746453]
[1744750629127,52.98036479,127.48,127.43,108.3360777]
[1744750631349,52.98036479,127.48,127.45,25.5250777]
[1744750631350,7.84436774,127.48,127.45,25.5250777]
[1744750631646,7.84375245,127.49,127.46,25.5250777]
[1744750631853,7.84375245,127.49,127.47,25.5250777]
[1744750632152,7.84375245,127.49,127.48,25.5250777]
[1744750632323,7.84375245,127.49,127.44,25.5250777]
[1744750632525,7.84375245,127.49,127.47,25.5250777]
[1744750633548,27.44882753,127.51,127.47,25.5250777]
[1744750634437,27.44882753,127.51,127.48,25.5250777]
[1744750635129,52.97390523,127.51,127.46,25.5250777]
[1744750635643,27.44882753,127.51,127.47,25.5250777]
[1744750635948,7.84252215,127.51,127.48,25.5250777]
[1744750636154,7.84252215,127.51,127.49,25.5250777]
[1744750636854,0.063,127.52,127.5,25.5250777]
[1744750636855,7.90517351,127.52,127.5,25.5250777]
[1744750637844,0.063,127.52,127.5,25.5250777]
[1744750638746,0.063,127.52,127.51,25.5250777]